Workbook

Sheet Budžet za 18 perioda
B1: budžet preduzeća
G2: DATUM POČETKA | H2: 2011-01-01 | I2: DUŽINA PERIODA (U DANIMA) | K2: 14 | L2: DATUM ZAVRŠETKA | M2: =TEXT(T5,"dd.mm.yyyy") -> 26.08.2012
C5: =UPPER(TEXT(H2,"dd-mmm")) -> 01-JAN | D5: =UPPER(TEXT(C5+Interval_dana,"dd-mmm")) -> 15-JAN | E5: 29-JAN | F5: 12-FEB | G5: 26-FEB | H5: 11-MAR | I5: 25-MAR | J5: 08-APR | K5: 22-APR | L5: 06-MAJ | M5: 20-MAJ | N5: 03-JUN | O5: 17-JUN | P5: 01-JUL | Q5: 15-JUL | R5: 29-JUL | S5: 12-AVG | T5: 26-AVG | U5: UKUPNO | V5: TREND
B6: NETO PRIHOD | C6: =Tabela_prihoda[[#Totals],[1. sedmica]]-Tabela_troškova[[#Totals],[1. sedmica]] -> 1,750.00 Din. | D6: =Tabela_prihoda[[#Totals],[2. sedmica]]-Tabela_troškova[[#Totals],[2. sedmica]] -> 2,236.00 Din. | E6: =Tabela_prihoda[[#Totals],[3. sedmica]]-Tabela_troškova[[#Totals],[3. sedmica]] -> 1,442.00 Din. | F6: =Tabela_prihoda[[#Totals],[4. sedmica]]-Tabela_troškova[[#Totals],[4. sedmica]] -> 2,253.00 Din. | G6: =Tabela_prihoda[[#Totals],[5. sedmica]]-Tabela_troškova[[#Totals],[5. sedmica]] -> 1,533.00 Din. | H6: =Tabela_prihoda[[#Totals],[6. sedmica]]-Tabela_troškova[[#Totals],[6. sedmica]] -> 1,086.00 Din. | I6: =Tabela_prihoda[[#Totals],[7. sedmica]]-Tabela_troškova[[#Totals],[7. sedmica]] -> 1,594.00 Din. | J6: =Tabela_prihoda[[#Totals],[8. sedmica]]-Tabela_troškova[[#Totals],[8. sedmica]] -> 0 | K6: =Tabela_prihoda[[#Totals],[9. sedmica]]-Tabela_troškova[[#Totals],[9. sedmica]] -> 0 | L6: =Tabela_prihoda[[#Totals],[10. sedmica]]-Tabela_troškova[[#Totals],[10. sedmica]] -> 0 | M6: =Tabela_prihoda[[#Totals],[11. sedmica]]-Tabela_troškova[[#Totals],[11. sedmica]] -> 0 | N6: =Tabela_prihoda[[#Totals],[12. sedmica]]-Tabela_troškova[[#Totals],[12. sedmica]] -> 0 | O6: =Tabela_prihoda[[#Totals],[13. sedmica]]-Tabela_troškova[[#Totals],[13. sedmica]] -> 0 | P6: =Tabela_prihoda[[#Totals],[14. sedmica]]-Tabela_troškova[[#Totals],[14. sedmica]] -> 0 | Q6: =Tabela_prihoda[[#Totals],[15. sedmica]]-Tabela_troškova[[#Totals],[15. sedmica]] -> 0 | R6: =Tabela_prihoda[[#Totals],[16. sedmica]]-Tabela_troškova[[#Totals],[16. sedmica]] -> 0 | S6: =Tabela_prihoda[[#Totals],[17. sedmica]]-Tabela_troškova[[#Totals],[17. sedmica]] -> 0 | T6: =Tabela_prihoda[[#Totals],[18. sedmica]]-Tabela_troškova[[#Totals],[18. sedmica]] -> 0 | U6: =Tabela_prihoda[[#Totals],[Ukupno]]-Tabela_troškova[[#Totals],[Ukupno]] -> 11,894.00 Din.
A8: prihod
B9: STAVKA PRIHODA 1 | C9: 3,000.00 Din. | D9: 3,500.00 Din. | E9: 2,978.00 Din. | F9: 3,384.00 Din. | G9: 2,858.00 Din. | H9: 2,809.00 Din. | I9: 3,220.00 Din. | U9: =SUM(Tabela_prihoda[[#This Row],[1. sedmica]:[18. sedmica]]) -> 21,749.00 Din.
B10: STAVKA PRIHODA 2 | C10: 1,150.00 | D10: 1,200.00 | E10: 1,144.00 | F10: 1,400.00 | G10: 1,358.00 | H10: 1,154.00 | I10: 1,245.00 | U10: =SUM(Tabela_prihoda[[#This Row],[1. sedmica]:[18. sedmica]]) -> 8,651.00
B11: STAVKA PRIHODA 3 | C11: 300.00 | D11: 350.00 | E11: 392.00 | F11: 326.00 | G11: 381.00 | H11: 364.00 | I11: 315.00 | U11: =SUM(Tabela_prihoda[[#This Row],[1. sedmica]:[18. sedmica]]) -> 2,428.00
B12: UKUPNI PRIHOD | C12: =SUBTOTAL(109,Tabela_prihoda[1. sedmica]) -> 4,450.00 Din. | D12: =SUBTOTAL(109,Tabela_prihoda[2. sedmica]) -> 5,050.00 Din. | E12: =SUBTOTAL(109,Tabela_prihoda[3. sedmica]) -> 4,514.00 Din. | F12: =SUBTOTAL(109,Tabela_prihoda[4. sedmica]) -> 5,110.00 Din. | G12: =SUBTOTAL(109,Tabela_prihoda[5. sedmica]) -> 4,597.00 Din. | H12: =SUBTOTAL(109,Tabela_prihoda[6. sedmica]) -> 4,327.00 Din. | I12: =SUBTOTAL(109,Tabela_prihoda[7. sedmica]) -> 4,780.00 Din. | J12: =SUBTOTAL(109,Tabela_prihoda[8. sedmica]) -> 0 | K12: =SUBTOTAL(109,Tabela_prihoda[9. sedmica]) -> 0 | L12: =SUBTOTAL(109,Tabela_prihoda[10. sedmica]) -> 0 | M12: =SUBTOTAL(109,Tabela_prihoda[11. sedmica]) -> 0 | N12: =SUBTOTAL(109,Tabela_prihoda[12. sedmica]) -> 0 | O12: =SUBTOTAL(109,Tabela_prihoda[13. sedmica]) -> 0 | P12: =SUBTOTAL(109,Tabela_prihoda[14. sedmica]) -> 0 | Q12: =SUBTOTAL(109,Tabela_prihoda[15. sedmica]) -> 0 | R12: =SUBTOTAL(109,Tabela_prihoda[16. sedmica]) -> 0 | S12: =SUBTOTAL(109,Tabela_prihoda[17. sedmica]) -> 0 | T12: =SUBTOTAL(109,Tabela_prihoda[18. sedmica]) -> 0 | U12: =SUBTOTAL(109,Tabela_prihoda[Ukupno]) -> 32,828.00 Din.
A14: troškovi
B15: PLATE | C15: 1,500.00 Din. | D15: 1,577.00 Din. | E15: 1,823.00 Din. | F15: 1,529.00 Din. | G15: 1,759.00 Din. | H15: 1,947.00 Din. | I15: 1,875.00 Din. | U15: =SUM(Tabela_troškova[[#This Row],[1. sedmica]:[18. sedmica]]) -> 12,010.00 Din.
B16: STANARINA | C16: 1,000.00 | D16: 1,000.00 | E16: 1,000.00 | F16: 1,000.00 | G16: 1,000.00 | H16: 1,000.00 | I16: 1,000.00 | U16: =SUM(Tabela_troškova[[#This Row],[1. sedmica]:[18. sedmica]]) -> 7,000.00
B17: STRUJA | C17: 40.00 | D17: 43.00 | E17: 40.00 | F17: 42.00 | G17: 45.00 | H17: 40.00 | I17: 42.00 | U17: =SUM(Tabela_troškova[[#This Row],[1. sedmica]:[18. sedmica]]) -> 292.00
B18: TELEFON | C18: 12.00 | D18: 11.00 | E18: 13.00 | F18: 14.00 | G18: 11.00 | H18: 15.00 | I18: 15.00 | U18: =SUM(Tabela_troškova[[#This Row],[1. sedmica]:[18. sedmica]]) -> 91.00
B19: INTERNET | C19: 15.00 | D19: 15.00 | E19: 15.00 | F19: 15.00 | G19: 15.00 | H19: 15.00 | I19: 15.00 | U19: =SUM(Tabela_troškova[[#This Row],[1. sedmica]:[18. sedmica]]) -> 105.00
B20: VODA | C20: 11.00 | D20: 10.00 | E20: 13.00 | F20: 10.00 | G20: 13.00 | H20: 10.00 | I20: 12.00 | U20: =SUM(Tabela_troškova[[#This Row],[1. sedmica]:[18. sedmica]]) -> 79.00
B21: GAS | C21: 23.00 | D21: 27.00 | E21: 26.00 | F21: 27.00 | G21: 22.00 | H21: 29.00 | I21: 21.00 | U21: =SUM(Tabela_troškova[[#This Row],[1. sedmica]:[18. sedmica]]) -> 175.00
B22: UKLANJANJE OTPADA | C22: 4.00 | D22: 4.00 | E22: 4.00 | F22: 4.00 | G22: 4.00 | H22: 4.00 | I22: 4.00 | U22: =SUM(Tabela_troškova[[#This Row],[1. sedmica]:[18. sedmica]]) -> 28.00
B23: KABLOVSKA TELEVIZIJA | C23: 10.00 | D23: 10.00 | E23: 10.00 | F23: 10.00 | G23: 10.00 | H23: 10.00 | I23: 10.00 | U23: =SUM(Tabela_troškova[[#This Row],[1. sedmica]:[18. sedmica]]) -> 70.00
B24: KANCELARIJSKI MATERIJAL | C24: 25.00 | D24: 57.00 | E24: 68.00 | F24: 146.00 | G24: 125.00 | H24: 111.00 | I24: 132.00 | U24: =SUM(Tabela_troškova[[#This Row],[1. sedmica]:[18. sedmica]]) -> 664.00
B25: OSIGURANJE | C25: 60.00 | D25: 60.00 | E25: 60.00 | F25: 60.00 | G25: 60.00 | H25: 60.00 | I25: 60.00 | U25: =SUM(Tabela_troškova[[#This Row],[1. sedmica]:[18. sedmica]]) -> 420.00
B26: UKUPNI TROŠKOVI | C26: =SUBTOTAL(109,Tabela_troškova[1. sedmica]) -> 2,700.00 Din. | D26: =SUBTOTAL(109,Tabela_troškova[2. sedmica]) -> 2,814.00 Din. | E26: =SUBTOTAL(109,Tabela_troškova[3. sedmica]) -> 3,072.00 Din. | F26: =SUBTOTAL(109,Tabela_troškova[4. sedmica]) -> 2,857.00 Din. | G26: =SUBTOTAL(109,Tabela_troškova[5. sedmica]) -> 3,064.00 Din. | H26: =SUBTOTAL(109,Tabela_troškova[6. sedmica]) -> 3,241.00 Din. | I26: =SUBTOTAL(109,Tabela_troškova[7. sedmica]) -> 3,186.00 Din. | J26: =SUBTOTAL(109,Tabela_troškova[8. sedmica]) -> 0 | K26: =SUBTOTAL(109,Tabela_troškova[9. sedmica]) -> 0 | L26: =SUBTOTAL(109,Tabela_troškova[10. sedmica]) -> 0 | M26: =SUBTOTAL(109,Tabela_troškova[11. sedmica]) -> 0 | N26: =SUBTOTAL(109,Tabela_troškova[12. sedmica]) -> 0 | O26: =SUBTOTAL(109,Tabela_troškova[13. sedmica]) -> 0 | P26: =SUBTOTAL(109,Tabela_troškova[14. sedmica]) -> 0 | Q26: =SUBTOTAL(109,Tabela_troškova[15. sedmica]) -> 0 | R26: =SUBTOTAL(109,Tabela_troškova[16. sedmica]) -> 0 | S26: =SUBTOTAL(109,Tabela_troškova[17. sedmica]) -> 0 | T26: =SUBTOTAL(109,Tabela_troškova[18. sedmica]) -> 0 | U26: =SUBTOTAL(109,Tabela_troškova[Ukupno]) -> 20,934.00 Din.
